[Event "French-ch U12-U14 2024"]
[Site "Agen"]
[Date "2024.04.20"]
[Round "8.9"]
[White "Landolsi, Iyad"]
[Black "Sagi, Elisha"]
[Result "1-0"]
[ECO "B40"]
[WhiteElo "1970"]
[BlackElo "1896"]
[Annotator "TA"]
[PlyCount "79"]
[EventDate "2024.04.14"]
[EventType "swiss"]
[EventCountry "FRA"]
[SourceTitle "playchess.com"]
[Source "ChessBase"]
[SourceQuality "1"]
[TimeControl "5400+30"]

{[%evp 9,79,39,41,46,51,25,24,21,44,46,56,4,-2,-14,4,-7,-5,-19,0,0,58,13,73,47,71,59,63,63,235,139,153,135,173,177,220,213,204,208,175,91,218,228,230,209,347,166,173,172,166,175,174,172,170,177,2252,1689,5373,5293,29994,-1813,128,0,29990,185,178,182,207,211,384,240,6117,6111]} 1. e4 {[%emt 0:00:02]} c5 {[%emt 0:01:45]} 2. Nf3 {[%emt 0:00:06]} e6 {[%emt 0:00:04]} 3. g3 {[%emt 0:00:05]} b6 {[%emt 0:00:51]} 4. Bg2 {[%emt 0:00:25]} Bb7 {[%emt 0:00:05]} 5. d4 {[%emt 0:01:28]} cxd4 {[%emt 0:00:15]} 6. Nxd4 {[%emt 0:02:32]} Nf6 {[%emt 0:01:34]} 7. Nd2 {[%emt 0:01:34]} a6 {[%emt 0:03:15]} 8. O-O {[%emt 0:02:28] White has an edge.} d6 {[%emt 0:00:31]} 9. a4 {[%emt 0:02:20]} Qc7 {[%emt 0:02:47]} 10. c3 {[%emt 0:05:11]} (10. Ra3 $14) 10... Be7 $11 {[%emt 0:00:25]} 11. Qe2 {[%emt 0:00:55]} Nbd7 {[%emt 0:14:44]} 12. Re1 {[%emt 0:05:08][%cal Oa4a5]} Rc8 {[%emt 0:05:09]} 13. N2b3 {[%emt 0:09:44]} Nc5 {[%emt 0:08:48]} 14. Nxc5 {[%emt 0:03:32]} dxc5 {[%emt 0:07:49]} (14... bxc5 $11 15. Nc2 O-O) 15. Nc2 {[%emt 0:03:15]} e5 {[%emt 0:03:31]} (15... O-O $11) 16. Bg5 {[%emt 0:05:42]} Ng8 {[%emt 0:01:00]} 17. Bxe7 {[%emt 0:09:49]} Nxe7 {[%emt 0:00:11]} 18. Ne3 {[%emt 0:01:41][%cal Oa4a5]} c4 $2 {[%emt 0:08:58]} (18... O-O $14) 19. Nd5 {[%emt 0:07:57]} (19. Bh3 $18) 19... Qd6 {[%emt 0:02:05]} 20. Rad1 {[%emt 0:05:19] Bh3 is the strong threat. White is more active.} O-O {[%emt 0:01:55] [#]} 21. Bh3 $1 {[%emt 0:04:46] Black must now prevent Nxe7+.} f5 {[%emt 0:19:00][%cal Rb7d5]} 22. Nxe7+ {[%emt 0:01:09]} Qxe7 {[%emt 0:00:09]} 23. exf5 {[%emt 0:00:43]} Rc5 {[%emt 0:01:33]} 24. Qe3 {[%emt 0:06:20]} (24. f4 $18) 24... Qe8 {[%emt 0:00:52]} (24... Qf6 $16 {was called for.}) 25. Rd6 $18 {[%emt 0:03:38]} Rc6 {[%emt 0:04:20]} 26. Red1 {[%emt 0:02:05][%cal Of5f6]} (26. Qxe5 $2 Qxe5 27. Rxe5 Rxd6 $19) 26... h6 {[%emt 0:04:23]} (26... Qh5 $142 27. g4 Qh4) 27. Bg2 {[%emt 0:05:40]} (27. Rd7 Bc8) (27. f6 $142 {Threatens to win with fxg7.} Rxd6 28. Rxd6 Rxf6 29. Rxf6 (29. Qxb6 Rxd6 30. Qxd6 Kh8 $18) (29. Rxb6 Qf7 $18) 29... gxf6 30. Qxb6 (30. Qxh6 Qc6 $18)) 27... Rxd6 {[%emt 0:00:53]} 28. Rxd6 {[%emt 0:00:08]} Bxg2 {[%emt 0:00:28]} 29. Kxg2 {[%emt 0:00:03] Hoping for Qe4.} Rxf5 {[%emt 0:01:01]} 30. Rxb6 {[%emt 0:01:22] Strongly threatening Qe4.} Qxa4 {[%emt 0:06:37][%mdl 4096] Endgame. KQR-KQR} 31. Qe4 {[%emt 0:01:00] Threatening mate with Rb8+.} Qd7 $2 {[%emt 0:00:31]} (31... Rf8 32. Qxe5 Qc2) 32. Rb8+ {[%emt 0:00:37]} Kf7 {[%emt 0:00:24]} 33. Rb7 {[%emt 0:00:05]} Kg8 {[%emt 0:01:07]} 34. Qe3 $4 {[%emt 0:10:41][%mdl 8192]} (34. Rxd7 {was the only winning move.} Rg5 35. h4 (35. Qxc4+ Kh7 36. Qd3+ Rg6 37. Rd6 e4 38. Qxe4 Kg8 39. Qe8+ Kh7 40. Qxg6+ Kh8 41. Rd8#) 35... h5 36. hxg5 h4 37. Rd8+ (37. Qxc4+ Kh7 38. Qf7 h3+ 39. Kxh3 Kh8 40. Qxg7#) 37... Kf7 38. Qf5+ Ke7 39. Qd7#) 34... Qa4 $2 ({Black should play} 34... Qxb7+ $19 35. Kf1 Qxb2) 35. Qe4 $40 {[%mdl 128] Black needs to defend precisely.} (35. Rb8+ $16 Rf8 36. Rxf8+ (36. Qxe5 Qc6+ 37. Kg1 Rxb8 $16) 36... Kxf8 37. Qxe5) 35... Rf7 $2 {[%emt 0:01:00][%mdl 8192] [#]} (35... Qd7 $11) 36. Rb6 $2 (36. Rb8+ {mates} Rf8 37. Qd5+ (37. Qxe5 Qc6+ 38. Kg1 Rxb8 $16) 37... Kh7 38. Rxf8 Qc2 39. Qg8+ (39. Qxc4 h5 $18) 39... Kg6 40. Qf7+ (40. Qxc4 h5 41. Qf7+ Kh6 42. h4 Qh7 43. Kh2 Qd3 44. Rh8+ Qh7 45. Qe6+ g6 46. Qf6 e4 47. Qf8#) (40. Qe6+ Kh7 41. Qe8 Qe4+ 42. Kh3 Qf5+ 43. Rxf5 a5 44. Rf8 g6 45. Rf7#) 40... Kh7 41. Qe8 (41. Qxc4 h5 $18) (41. Qg8+ Kg6 42. Qe6+ Kh7 43. Qe8 Qe4+ 44. Kh3 Qf5+ 45. Rxf5 e4 46. Rf8 g6 47. Rf7#)) 36... Rf8 37. Qxe5 {[%emt 0:01:30]} Qd7 38. Qe4 {[%emt 0:00:30]} (38. Rxa6 $2 Qb7+ 39. f3 Qxa6 $19) 38... Rf5 $2 (38... Qf7 39. Qe6 (39. Rxa6 Qxf2+ 40. Kh3 Qf1+ 41. Kg4 Qd1+ 42. Kh3 Qf1+ 43. Kg4 Qd1+ 44. Kh3 Qf1+ $11) 39... Qxe6 40. Rxe6 Rb8 41. Rxa6 Rxb2) 39. Rb8+ {[%emt 0:00:30]} Rf8 $2 (39... Kh7 40. Rb4 (40. Qxc4 Rxf2+ 41. Kxf2 Qa7+ 42. Ke2 Qxb8 $18) 40... Kh8 41. Qxc4 (41. Rxc4 Rf8 $18) 41... Qd8) 40. Qxc4+ {White used his chance.   Weighted Error Value: White=0.62/Black=0.88.  Loses game:     	---       	Black=1      Mistake:       	White=5     	Black=7      Inaccurate:     	White=4     	Black=1      OK:         	White=8     	Black=6      Best:        	White=2     	Black=4      Strong:       	White=1     	---} 1-0

[Event "French-ch U12-U14 2024"]
[Site "Agen"]
[Date "2024.04.20"]
[Round "8.10"]
[White "Duquesne, Adrien"]
[Black "Savignon Schmidt, Maxime"]
[Result "1-0"]
[ECO "B53"]
[WhiteElo "2145"]
[BlackElo "1944"]
[Annotator "TA"]
[PlyCount "67"]
[EventDate "2024.04.14"]
[EventType "swiss"]
[EventCountry "FRA"]
[SourceTitle "playchess.com"]
[Source "ChessBase"]
[SourceQuality "1"]
[TimeControl "5400+30"]

{[%evp 16,67,14,8,15,0,11,9,24,15,11,11,33,21,20,-6,8,-7,32,11,37,0,0,0,8,10,26,0,6,0,0,0,17,0,68,66,150,31,108,124,129,113,130,100,100,0,87,97,252,0,0,0,0,0]} 1. e4 {[%emt 0:00:06]} c5 {[%emt 0:02:29]} 2. Nf3 {[%emt 0:01:18]} d6 {[%emt 0:01:19]} 3. d4 {[%emt 0:02:16]} cxd4 {[%emt 0:00:49]} 4. Qxd4 {[%emt 0:00:11]} Nc6 {[%emt 0:02:32]} 5. Bb5 {[%emt 0:00:19]} Bd7 {[%emt 0:00:56]} 6. Bxc6 {[%emt 0:00:44]} Bxc6 {[%emt 0:00:07]} 7. c4 {[%emt 0:00:04]} Nf6 {[%emt 0:00:57]} 8. Nc3 {[%emt 0:00:56]} g6 {[%emt 0:01:35]} 9. Bg5 {[%emt 0:00:53]} Bg7 {[%emt 0:00:21]} 10. Qd3 {[%emt 0:00:14]} Rc8 {[%emt 0:05:40]} 11. O-O {[%emt 0:01:08]} O-O {[%emt 0:01:12]} 12. Rac1 {[%emt 0:01:54]} Nd7 {[%emt 0:08:43]} 13. b4 {[%emt 0:03:04] Repels Nc5} b6 {[%emt 0:01:30]} 14. h3 {[%emt 0:03:45]} h6 {[%emt 0:02:18]} 15. Be3 {[%emt 0:00:29]} Kh7 {[%emt 0:13:09]} 16. Nd2 {[%emt 0:11:33]} Qc7 {[%emt 0:12:10]} 17. f4 {[%emt 0:02:55]} a6 {[%emt 0:13:53]} 18. Rc2 {[%emt 0:06:33]} Qb8 {[%emt 0:09:35]} 19. Rfc1 {[%emt 0:09:46]} Bxc3 {[%emt 0:13:39]} 20. Rxc3 {[%emt 0:00:59][%cal Bc2c3,Bc3c7,Bc7e7,Be7e5][%mdl 32]} b5 {[%emt 0:01:23]} 21. a3 {[%emt 0:01:45]} bxc4 {[%emt 0:04:14]} 22. Nxc4 {[%emt 0:02:21]} Qa8 {[%emt 0:01:30]} 23. Nd2 {[%emt 0:02:07]} Bb7 {[%emt 0:00:36] Black is weak on the dark squares} 24. Rc7 {[%emt 0:01:10]} Nf6 {[%emt 0:01:01]} (24... Nc5 $2 25. Rxc8 (25. bxc5 $2 Rxc7 26. f5 gxf5 $19) 25... Nxd3 26. Rxa8 Bxa8 27. Rc3 $16) (24... Qb8 $1 $11 25. R7c4 Rxc4 26. Nxc4 (26. Qxc4 Qa8 $11) 26... Qa8) 25. f5 $36 {[%emt 0:03:16][%mdl 2048] Strongly threatening fxg6+. White is more active.} gxf5 {[%emt 0:00:33] [#]} (25... g5 $14) 26. e5 {[%emt 0:01:29]} ({Only move:} 26. Qf1 $1 $16 {[%cal Rf1f5]}) 26... Be4 {[%emt 0:00:32] [#]} (26... Ne4 $14) 27. Nxe4 $1 $16 {[%emt 0:04:26]} (27. Rxc8 Rxc8 (27... Bxd3 $2 28. Rxa8 Rxa8 29. exf6 $18) 28. Rxc8 Qxc8 29. Nxe4 Nxe4 $11 (29... fxe4 $2 30. Qb3 $18)) 27... Nxe4 {[%emt 0:00:34]} 28. Rxe7 {[%emt 0:00:51] White has more active pieces.} Rxc1+ {[%emt 0:00:18]} 29. Bxc1 {[%emt 0:00:02]} dxe5 {[%emt 0:00:53]} 30. Qe3 {[%emt 0:02:01]} (30. Rxe5 $16 Qd8 31. Qe3 (31. Qxa6 $2 {is the wrong capture.} Qd4+ 32. Kh1 Nf2+ 33. Kg1 Nxh3+ 34. Kh2 Qxe5+ $19)) 30... f4 {[%emt 0:00:28]} (30... Qc6 $1 $11 {remains equal.} 31. Rxe5 Qg6) 31. Qb3 {[%emt 0:00:58]} Kg8 {[%emt 0:00:27]} (31... Ng5 $16) 32. Bb2 $2 {[%emt 0:36:57]} (32. Rxe5 $18 Re8 33. Bxf4 (33. Rxe8+ Qxe8 34. Bxf4 Qc6 $18)) 32... Qd8 $11 {[%emt 0:01:07]} ({Don't go for} 32... Nd2 $2 33. Qc3 f6 34. Qxd2 $18) 33. Rxe5 {[%emt 0:00:30]} Qb6+ $1 34. Kh2 {[%emt 0:00:30][%mdl 32768] Weighted Error Value: White=0.33/Black=0.27 (precise) .  Missed win:     	White=1     	---        Mistake:       	White=2     	Black=5      Inaccurate:     	White=2     	Black=2      OK:         	White=7     	Black=9      Strong:       	White=1     	Black=1     . Sensor Board Error (Ke4/e5)?} 1-0

[Event "French-ch U12-U14 2024"]
[Site "Agen"]
[Date "2024.04.20"]
[Round "8.12"]
[White "Castagnerol, Cerise"]
[Black "Pauly, Juliette"]
[Result "1-0"]
[ECO "D34"]
[WhiteElo "1755"]
[BlackElo "1617"]
[Annotator "NA RC COMBH"]
[PlyCount "123"]
[EventDate "2024.04.14"]
[EventType "swiss"]
[EventCountry "FRA"]
[SourceTitle "playchess.com"]
[Source "ChessBase"]
[SourceQuality "1"]
[TimeControl "5400+30"]

1. d4 {[%emt 0:00:02]} d5 {[%emt 0:00:14]} 2. c4 {[%emt 0:00:07]} e6 {[%emt 0:00:06]} 3. Nf3 {[%emt 0:00:07]} c5 {[%emt 0:00:16]} 4. cxd5 {[%emt 0:01:37]} exd5 {[%emt 0:00:07]} 5. g3 {[%emt 0:00:13]} Nc6 {[%emt 0:00:06]} 6. Bg2 {[%emt 0:00:35]} Nf6 {[%emt 0:00:21]} 7. O-O {[%emt 0:00:53]} c4 {[%emt 0:00:46]} 8. Nc3 {[%emt 0:02:13]} Be7 {[%emt 0:00:11]} 9. Re1 {[%emt 0:01:35]} O-O {[%emt 0:01:51]} 10. Bf4 {[%emt 0:02:58]} Be6 {[%emt 0:05:49]} 11. Ne5 {[%emt 0:07:46]} Rc8 {[%emt 0:17:12]} 12. Nxc6 {[%emt 0:05:01]} Rxc6 {[%emt 0:01:16]} 13. f3 {[%emt 0:00:55]} Nh5 {[%emt 0:19:45]} 14. Be3 {[%emt 0:02:50]} Qd7 {[%emt 0:01:27]} 15. Bf2 {[%emt 0:00:47]} f5 {[%emt 0:12:13]} 16. e4 {[%emt 0:01:56]} fxe4 {[%emt 0:01:17]} 17. fxe4 {[%emt 0:01:47]} Bg4 {[%emt 0:01:08]} 18. Qc2 {[%emt 0:06:39]} Rcf6 {[%emt 0:10:04]} 19. Be3 {[%emt 0:03:15]} dxe4 {[%emt 0:05:58]} 20. Nxe4 {[%emt 0:01:45]} Rg6 {[%emt 0:06:46]} 21. d5 {[%emt 0:08:01]} b5 {[%emt 0:03:08]} 22. Rf1 {[%emt 0:09:23]} Nf6 {[%emt 0:04:03]} 23. Nxf6+ {[%emt 0:13:11]} Rgxf6 {[%emt 0:00:59]} 24. Bd4 {[%emt 0:02:39]} R6f7 {[%emt 0:03:56]} 25. a4 {[%emt 0:05:11]} Bf3 {[%emt 0:02:39]} 26. Bxf3 {[%emt 0:02:03]} Rxf3 {[%emt 0:00:02]} 27. Rxf3 {[%emt 0:00:19]} Rxf3 {[%emt 0:00:01]} 28. Qe4 {[%emt 0:00:23]} Rf5 {[%emt 0:01:33]} 29. Qe6+ {[%emt 0:04:23]} Qxe6 {[%emt 0:00:10]} 30. dxe6 {[%emt 0:00:01]} Bc5 {[%emt 0:01:32]} 31. Bxc5 {[%emt 0:00:55]} Rxc5 {[%emt 0:00:01]} 32. axb5 {[%emt 0:00:03]} Rxb5 {[%emt 0:00:38]} 33. Rxa7 {[%emt 0:00:06]} Kf8 {[%emt 0:00:47]} 34. Rf7+ {[%emt 0:03:14]} Kg8 {[%emt 0:00:22]} 35. Rf2 {[%emt 0:00:46]} Re5 {[%emt 0:00:24]} 36. Rc2 {[%emt 0:01:27]} Re4 {[%emt 0:00:48]} 37. b3 {[%emt 0:00:22]} Rxe6 {[%emt 0:00:21]} 38. bxc4 {[%emt 0:00:02]} Rc6 {[%emt 0:00:21]} 39. Kf2 {[%emt 0:00:38]} Kf7 {[%emt 0:00:06]} 40. Ke3 {[%emt 0:00:12]} Ke6 {[%emt 0:01:06]} 41. Ke4 {[%emt 0:01:25]} g6 {[%emt 0:00:38]} 42. c5 {[%emt 0:00:59]} h6 {[%emt 0:00:27]} 43. Kd4 {[%emt 0:00:53]} Kd7 {[%emt 0:00:34]} 44. Rf2 {[%emt 0:02:16]} Re6 {[%emt 0:00:19]} 45. Kd5 {[%emt 0:00:20]} Re7 {[%emt 0:00:30]} 46. Ra2 {[%emt 0:01:26]} Kc8 {[%emt 0:00:40]} 47. Ra8+ {[%emt 0:01:48]} Kb7 {[%emt 0:00:22]} 48. Rh8 {[%emt 0:00:51]} h5 {[%emt 0:00:18]} 49. Rg8 {[%emt 0:01:50]} Rd7+ {[%emt 0:00:40]} 50. Ke6 {[%emt 0:00:50]} Rd2 {[%emt 0:00:18]} 51. Rxg6 {[%emt 0:01:37]} Rxh2 {[%emt 0:00:12]} 52. Kd7 {[%emt 0:01:19]} Rc2 {[%emt 0:01:11]} 53. Rb6+ {[%emt 0:02:23]} Ka7 {[%emt 0:00:18]} 54. Kc6 {[%emt 0:01:24]} Rc3 {[%emt 0:00:40]} 55. Rb7+ {[%emt 0:00:38]} Ka6 {[%emt 0:00:28]} 56. Rh7 {[%emt 0:00:42]} Rxg3 {[%emt 0:00:26]} 57. Rxh5 {[%emt 0:00:02]} Rc3 {[%emt 0:00:24]} 58. Kc7 {[%emt 0:00:38]} Kb5 {[%emt 0:00:44]} 59. c6+ {[%emt 0:00:08]} Ka6 {[%emt 0:00:17]} 60. Rh1 {[%emt 0:01:19]} Kb5 {[%emt 0:00:42]} 61. Rb1+ {[%emt 0:00:10]} Ka6 {[%emt 0:00:25]} 62. Ra1+ {[%emt 0:00:17]} 1-0

[Event "French-ch U12-U14 2024"]
[Site "Agen"]
[Date "2024.04.20"]
[Round "8.13"]
[White "Nicot, Anna"]
[Black "Pereira Garza, Cecilia"]
[Result "0-1"]
[ECO "A46"]
[WhiteElo "1649"]
[BlackElo "1725"]
[Annotator "NA RC COMBH"]
[PlyCount "100"]
[EventDate "2024.04.14"]
[EventType "swiss"]
[EventCountry "FRA"]
[SourceTitle "playchess.com"]
[Source "ChessBase"]
[SourceQuality "1"]
[TimeControl "5400+30"]

1. d4 {[%emt 0:00:03]} d5 {[%emt 0:00:06]} 2. Nf3 {[%emt 0:00:05]} e6 {[%emt 0:00:07]} 3. g3 {[%emt 0:00:03]} Nf6 {[%emt 0:00:09]} 4. Bg2 {[%emt 0:00:05]} b5 {[%emt 0:00:07]} 5. O-O {[%emt 0:00:10]} Be7 {[%emt 0:00:10]} 6. a4 {[%emt 0:00:08]} b4 {[%emt 0:00:12]} 7. c4 {[%emt 0:00:22]} bxc3 {[%emt 0:00:11]} 8. Nxc3 {[%emt 0:00:07]} O-O {[%emt 0:03:21]} 9. Bf4 {[%emt 0:06:22]} c6 {[%emt 0:01:24]} 10. Rc1 {[%emt 0:02:12]} Nbd7 {[%emt 0:03:29]} 11. Qb3 {[%emt 0:06:58]} Ba6 {[%emt 0:04:50]} 12. Rfe1 {[%emt 0:00:52]} c5 {[%emt 0:00:56]} 13. dxc5 {[%emt 0:06:09]} Nxc5 {[%emt 0:02:04]} 14. Qc2 {[%emt 0:03:20]} Rc8 {[%emt 0:05:48]} 15. Qd1 {[%emt 0:03:26]} Qb6 {[%emt 0:07:47]} 16. Rb1 {[%emt 0:04:43]} Bd6 {[%emt 0:09:10]} 17. Bxd6 {[%emt 0:02:06]} Qxd6 {[%emt 0:00:15]} 18. e4 {[%emt 0:08:02]} Qb6 {[%emt 0:06:06]} 19. exd5 {[%emt 0:06:06]} Nd3 {[%emt 0:01:55]} 20. Rf1 {[%emt 0:06:36]} exd5 {[%emt 0:06:40]} 21. Qd2 {[%emt 0:02:00]} Qc5 {[%emt 0:08:28]} 22. Bh3 {[%emt 0:13:23]} Rb8 {[%emt 0:02:17]} 23. Rfd1 {[%emt 0:06:52]} Ne4 {[%emt 0:01:43]} 24. Nxe4 {[%emt 0:00:21]} dxe4 {[%emt 0:00:08]} 25. Ne1 {[%emt 0:01:38]} Nxe1 {[%emt 0:13:30]} 26. Qxe1 {[%emt 0:00:25]} Bd3 {[%emt 0:00:20]} 27. Rbc1 {[%emt 0:00:41]} Qb4 {[%emt 0:00:46]} 28. Qxb4 {[%emt 0:04:22]} Rxb4 {[%emt 0:00:12]} 29. b3 {[%emt 0:00:10]} Rxb3 {[%emt 0:01:49]} 30. Rc7 {[%emt 0:00:14]} a6 {[%emt 0:00:25]} 31. Ra1 {[%emt 0:01:42]} Rfb8 {[%emt 0:02:19]} 32. Rac1 {[%emt 0:04:56]} Rb1 {[%emt 0:01:20]} 33. Rc8+ {[%emt 0:00:20]} Rxc8 {[%emt 0:00:10]} 34. Rxb1 {[%emt 0:00:06]} Bxb1 {[%emt 0:00:26]} 35. Bxc8 {[%emt 0:00:07]} a5 {[%emt 0:00:07]} 36. Bd7 {[%emt 0:00:10]} Kf8 {[%emt 0:00:11]} 37. Kf1 {[%emt 0:00:19]} Ke7 {[%emt 0:00:13]} 38. Bb5 {[%emt 0:00:07]} Kd6 {[%emt 0:00:08]} 39. Ke2 {[%emt 0:00:15]} Kc5 {[%emt 0:00:10]} 40. Be8 {[%emt 0:00:44]} Kb4 {[%emt 0:02:01]} 41. Bxf7 {[%emt 0:00:52]} Kxa4 {[%emt 0:00:09]} 42. Kd1 {[%emt 0:00:09]} Ka3 {[%emt 0:00:32]} 43. Kc1 {[%emt 0:00:07]} Bd3 {[%emt 0:00:54]} 44. Bg8 {[%emt 0:00:18]} h6 {[%emt 0:00:52]} 45. h4 {[%emt 0:01:12]} Kb4 {[%emt 0:00:31]} 46. Ba2 {[%emt 0:00:13]} a4 {[%emt 0:00:21]} 47. g4 {[%emt 0:01:20]} a3 {[%emt 0:00:13]} 48. g5 {[%emt 0:00:17]} hxg5 {[%emt 0:00:16]} 49. hxg5 {[%emt 0:00:06]} Bc4 {[%emt 0:00:06]} 50. Bxc4 {[%emt 0:01:19]} Kxc4 {[%emt 0:00:07]} 0-1

[Event "French-ch U12-U14 2024"]
[Site "Agen"]
[Date "2024.04.20"]
[Round "8.15"]
[White "Dubin, Lisa"]
[Black "Ramette, Charlie"]
[Result "1-0"]
[ECO "C02"]
[WhiteElo "1711"]
[BlackElo "1667"]
[Annotator "NA RC COMBH"]
[PlyCount "81"]
[EventDate "2024.04.14"]
[EventType "swiss"]
[EventCountry "FRA"]
[SourceTitle "playchess.com"]
[Source "ChessBase"]
[SourceQuality "1"]
[TimeControl "5400+30"]

1. e4 {[%emt 0:00:14]} e6 {[%emt 0:00:09]} 2. d4 {[%emt 0:00:42]} d5 {[%emt 0:00:05]} 3. e5 {[%emt 0:00:05]} c5 {[%emt 0:00:11]} 4. c3 {[%emt 0:00:03]} Nc6 {[%emt 0:00:14]} 5. Nf3 {[%emt 0:00:04]} Qb6 {[%emt 0:00:25]} 6. Bd3 {[%emt 0:00:09]} Bd7 {[%emt 0:00:19]} 7. dxc5 {[%emt 0:00:09]} Bxc5 {[%emt 0:00:18]} 8. O-O {[%emt 0:00:06]} Nge7 {[%emt 0:01:50]} 9. b4 {[%emt 0:01:58]} Nxb4 {[%emt 0:03:23]} 10. cxb4 {[%emt 0:00:55]} Bd4 {[%emt 0:00:19]} 11. Nxd4 {[%emt 0:02:28]} Qxd4 {[%emt 0:00:41]} 12. Qb3 {[%emt 0:02:41]} Nc6 {[%emt 0:02:41]} 13. Bb5 {[%emt 0:10:43]} Qxa1 {[%emt 0:13:40]} 14. Bb2 {[%emt 0:08:51]} Nd4 {[%emt 0:01:08]} 15. Bxd7+ {[%emt 0:01:06]} Kxd7 {[%emt 0:00:11]} 16. Qa4+ {[%emt 0:01:02]} b5 {[%emt 0:00:21]} 17. Qa6 {[%emt 0:01:43]} Qxb2 {[%emt 0:06:49]} 18. Qb7+ {[%emt 0:00:56]} Kd8 {[%emt 0:01:36]} 19. Qxa8+ {[%emt 0:00:30]} Kd7 {[%emt 0:00:31]} 20. Qxh8 {[%emt 0:03:36]} Ne2+ {[%emt 0:01:44]} 21. Kh1 {[%emt 0:00:10]} Qxe5 {[%emt 0:01:14]} 22. Qxh7 {[%emt 0:01:43]} Nf4 {[%emt 0:02:30]} 23. Qc2 {[%emt 0:04:16]} Qg5 {[%emt 0:03:55]} 24. g3 {[%emt 0:04:57]} Qh5 {[%emt 0:07:07]} 25. f3 {[%emt 0:00:59]} Ng6 {[%emt 0:04:55]} 26. Qc5 {[%emt 0:04:28]} Ne5 {[%emt 0:02:44]} 27. Qxa7+ {[%emt 0:03:19]} Kd6 {[%emt 0:02:03]} 28. Qc5+ {[%emt 0:01:08]} Kd7 {[%emt 0:00:19]} 29. Qxb5+ {[%emt 0:00:17]} Ke7 {[%emt 0:00:34]} 30. a4 {[%emt 0:05:55]} Nc4 {[%emt 0:02:45]} 31. a5 {[%emt 0:02:29]} Qf5 {[%emt 0:00:56]} 32. Qc5+ {[%emt 0:00:53]} Kf6 {[%emt 0:01:14]} 33. Qd4+ {[%emt 0:01:32]} Ke7 {[%emt 0:01:57]} 34. a6 {[%emt 0:02:22]} Qc2 {[%emt 0:01:08]} 35. a7 {[%emt 0:02:00]} Qe2 {[%emt 0:05:33]} 36. Qc5+ {[%emt 0:03:01]} Kf6 {[%emt 0:01:56]} 37. Qf2 {[%emt 0:01:56]} Qxf2 {[%emt 0:01:11]} 38. Rxf2 {[%emt 0:00:09]} Nb6 {[%emt 0:00:08]} 39. Nc3 {[%emt 0:01:25]} Ke7 {[%emt 0:00:29]} 40. Nb5 {[%emt 0:00:29]} Kd7 {[%emt 0:00:57]} 41. Rc2 {[%emt 0:00:23]} 1-0